fUST/lending_fUST_20250321
["ID","MTS","AMOUNT","RATE_DAILY","PERIOD"]
[356485397,1742518244201,-367.62629719,0.0003172,2]
[356485398,1742518244210,-1709.37875676,0.00031762,6]
[356485399,1742518244219,-548.5824257,0.00031889,4]
[356485400,1742518244228,-419.05095866,0.000319,2]
[356485401,1742518244237,-1709.37875676,0.00031934,6]
[356485402,1742518244247,-151.00000001,0.00031957,2]
[356485403,1742518244257,-666.95684183,0.00031965,2]
[356485404,1742518244266,-1333.91368366,0.00031966,2]
[356485405,1742518244277,-182.45448448,0.00031976,20]
[356485406,1742518244286,-2484.13250693,0.00031976,2]
[356485407,1742518244295,-5702.4401697,0.00031976,2]
[356485408,1742518244323,-21708.08085084,0.00031976,2]
[356485554,1742518714458,165.564864,0.00010959,2]
[356485726,1742519438151,-200.01852087,0.00016338,2]
[356485727,1742519438161,-165.564864,0.00016438,2]
[356485728,1742519438171,-500.0,0.00016438,2]
[356485729,1742519438181,-165.564864,0.00021918,2]
[356485730,1742519438190,-165.564864,0.00027397,2]
[356485731,1742519438199,-257.5683169,0.00028399,2]
[356485732,1742519438209,-300.0,0.00029654,2]
[356485733,1742519438219,-417.94044697,0.00029655,2]
[356485734,1742519438228,-833.99388742,0.00029655,2]
[356485735,1742519438238,-160.0,0.00029655,2]
[356485736,1742519438247,-160.0,0.00029655,2]
[356485737,1742519438257,-200.01852086,0.000309,2]
[356485738,1742519438267,-1319.67379669,0.000309,5]
[356485739,1742519438276,-1226.32137871,0.00030929,2]
[356485740,1742519438286,-5338.08967746,0.00030974,2]
[356485741,1742519438296,-1928.49287657,0.00031,5]
[356485798,1742519443342,-1082.65978946,0.00031,5]
[356485799,1742519443354,-949.999995,0.00031,10]
[356485800,1742519443364,-8775.85086026,0.00031023,2]
[356486010,1742519835580,189.216987,0.00010959,2]
[356486052,1742520632262,-165.72219045,0.0001369,2]
[356486053,1742520632271,-189.216987,0.00019178,2]
[356486054,1742520632280,-184.45566677,0.0002155,2]
[356486055,1742520632289,-189.216987,0.00027397,2]
[356486056,1742520632299,-300.0,0.00029969,2]
[356486057,1742520632309,-16215.19377419,0.0002997,2]
[356486058,1742520632318,-328.0,0.0003,120]
[356486059,1742520632327,-176.2305196,0.00030411,30]
[356486060,1742520632336,-307.0344214,0.00030411,30]
[356486061,1742520632345,-306.0,0.00030411,30]
[356486062,1742520632354,-1485.46787859,0.00030875,2]
[356486063,1742520632363,-1650.52037351,0.000309,5]
[356486064,1742520632372,-620.56220065,0.00030957,2]
[356486065,1742520632382,-500.0,0.00030969,2]
[356486066,1742520632391,-500.0,0.00030969,2]
[356486067,1742520632400,-500.0,0.00030969,2]
[356486068,1742520632410,-500.0,0.00030969,2]
[356486069,1742520632419,-500.0,0.00030969,2]
[356486070,1742520632430,-500.0,0.00030969,2]
[356486071,1742520632439,-500.0,0.00030969,2]
[356486072,1742520632448,-500.0,0.00030969,2]
[356486073,1742520632458,-500.0,0.00030969,2]
[356486074,1742520632468,-500.0,0.00030969,2]
[356486075,1742520632477,-200.52359731,0.00030969,2]
[356486076,1742520632487,-500.0,0.00030969,2]
[356486077,1742520632497,-500.0,0.00030969,2]
[356486078,1742520632507,-500.0,0.00030969,2]
[356486079,1742520632516,-500.0,0.00030969,2]
[356486080,1742520632526,-500.0,0.00030969,2]
[356486081,1742520632536,-500.0,0.00030969,2]
[356486082,1742520632545,-500.0,0.00030969,2]
[356486083,1742520632555,-500.0,0.00030969,2]
[356486084,1742520632564,-500.0,0.00030969,2]
[356486085,1742520632573,-500.0,0.00030969,2]
[356486086,1742520632582,-500.0,0.00030969,2]
[356486087,1742520632591,-500.0,0.00030969,2]
[356486088,1742520632600,-500.0,0.00030969,2]
[356486089,1742520632609,-500.0,0.00030969,2]
[356486090,1742520632619,-500.0,0.00030969,2]
[356486091,1742520632628,-833.99388742,0.0003097,2]
[356486092,1742520632637,-417.75572717,0.0003097,2]
[356486093,1742520632647,-12458.93820146,0.0003097,2]
[356486094,1742520632657,-160.0,0.00030973,2]
[356486095,1742520632666,-1000.0,0.00031,2]
[356486096,1742520632675,-269.85238551,0.00031,2]
[356486097,1742520632687,-566.46418578,0.00031,2]
[356486098,1742520632979,-500.0,0.00030969,2]
[356486099,1742520632989,-500.0,0.00030969,2]
[356486100,1742520632998,-500.0,0.00030969,2]
[356486101,1742520633007,-500.0,0.00030969,2]
[356486102,1742520633017,-500.0,0.00030969,2]
[356486103,1742520633027,-163.68342871,0.00031,2]
[356486104,1742520633037,-1650.52037322,0.00031072,5]
[356486105,1742520633046,-366.5356126,0.000311,30]
[356486106,1742520633057,-822.8736386,0.00031113,4]
[356486107,1742520633067,-1000.0,0.000312,3]
[356486108,1742520633077,-159.9,0.00031233,2]
[356486109,1742520633086,-1650.52037322,0.00031245,5]
[356486110,1742520633096,-425.77262836,0.0003127,2]
[356486111,1742520633106,-1000.0,0.0003137,6]
[356486112,1742520633116,-1650.52037322,0.00031417,6]
[356486113,1742520633126,-425.77262835,0.00031428,2]
[356486114,1742520633135,-1485.46787858,0.0003146,2]
[356486115,1742520633145,-1000.0,0.00031507,6]
[356486116,1742520633154,-425.77262835,0.00031585,2]
[356486117,1742520633164,-1420.43478,0.00031589,7]
[356486118,1742520633177,-1650.52037322,0.0003159,6]
[356486119,1742520633187,-290.6134,0.00031595,30]
[356486120,1742520633198,-1000.0,0.00031644,6]
[356486121,1742520633208,-425.77262835,0.00031743,2]
[356486122,1742520633219,-1650.52037322,0.00031762,6]
[356486123,1742520633228,-1000.0,0.00031781,6]
[356486124,1742520633238,-500.0,0.00031799,2]
[356486125,1742520633247,-204.43287047,0.00031799,2]
[356486126,1742520633257,-420.92846043,0.00031799,2]
[356486127,1742520633266,-1000.0,0.000318,7]
[356486128,1742520633277,-1000.0,0.000318,10]
[356486129,1742520633287,-1000.0,0.000318,20]
[356486130,1742520633298,-1000.0,0.000318,6]
[356486131,1742520633308,-1000.0,0.000318,5]
[356486132,1742520633317,-1000.0,0.000318,4]
[356486133,1742520633327,-300.20923726,0.00031801,2]
[356486134,1742520633337,-2024.32506982,0.00031887,2]
[356486135,1742520633347,-425.77262835,0.000319,2]
[356486136,1742520633357,-495.77,0.00031906,3]
[356486137,1742520633367,-312.82,0.00031914,3]
[356486138,1742520633376,-165.25,0.00031914,3]
[356486139,1742520633386,-1251.28,0.00031916,3]
[356486140,1742520633396,-625.64,0.00031916,3]
[356486141,1742520633406,-722.8972825,0.00031918,30]
[356486142,1742520633416,-1000.0,0.00031918,6]
[356486143,1742520633426,-715.02,0.00031924,3]
[356486144,1742520633436,-2502.57,0.00031926,3]
[356486145,1742520633445,-1650.52037322,0.00031934,6]
[356486146,1742520633455,-151.0,0.00031936,7]
[356486147,1742520633465,-151.0,0.00031936,7]
[356486148,1742520633475,-151.0,0.00031936,7]
[356486149,1742520633484,-151.0,0.00031936,7]
[356486150,1742520633494,-2667.8273673,0.00031936,2]
[356486151,1742520633503,-151.0,0.00031945,7]
[356486152,1742520633513,-151.0,0.00031946,7]
[356486153,1742520633522,-151.0,0.00031946,7]
[356486154,1742520633532,-151.0,0.00031946,7]
[356486155,1742520633542,-854.963073,0.00031946,2]
[356486156,1742520633551,-854.963073,0.00031946,2]
[356486157,1742520633562,-151.0,0.00031946,7]
[356486158,1742520633572,-151.0,0.00031946,7]
[356486159,1742520633581,-151.0,0.00031946,7]
[356486160,1742520633591,-151.0,0.00031946,7]
[356486161,1742520633600,-162.113812,0.00031946,7]
[356486162,1742520633610,-151.0,0.00031946,7]
[356486163,1742520633620,-151.0,0.00031946,7]
[356486164,1742520633630,-151.0,0.00031946,7]
[356486165,1742520633639,-3000.0,0.00031946,2]
[356486166,1742520633649,-222000.0,0.00031946,2]
[356486167,1742520633658,-261.65637433,0.00032,2]
[356486168,1742520633668,-153.28489234,0.00032027,2]
[356486169,1742520633678,-1485.46787858,0.00032044,2]
[356486170,1742520633687,-151.0,0.00032045,7]
[356486171,1742520633696,-151.0,0.00032045,7]
[356486172,1742520633705,-151.0,0.00032046,7]
[356486173,1742520633715,-151.0,0.00032046,7]
[356486174,1742520633724,-151.0,0.00032046,7]
[356486175,1742520633734,-174.792197,0.00032046,7]
[356486176,1742520633743,-151.0,0.00032046,7]
[356486177,1742520633752,-174.792197,0.00032046,7]
[356486178,1742520633761,-151.0,0.00032046,7]
[356486179,1742520633771,-197.573972,0.00032046,7]
[356486180,1742520633780,-197.573972,0.00032046,7]
[356486181,1742520633790,-151.0,0.00032046,7]
[356486182,1742520633799,-151.0,0.00032046,7]
[356486183,1742520633808,-1000.0,0.00032055,6]
[356486184,1742520633817,-154.4928917,0.00032055,30]
[356486185,1742520633827,-190.8239613,0.00032055,30]
[356486186,1742520633836,-576.3240963,0.00032055,30]
[356486187,1742520633845,-159.5609214,0.00032055,30]
[356486188,1742520633855,-482.52798853,0.00032075,2]
[356486189,1742520633865,-354.0,0.00032107,7]
[356486190,1742520633874,-317.0,0.00032107,7]
[356486191,1742520633884,-1650.52037322,0.00032107,6]
[356486192,1742520633893,-1000.0,0.00032192,6]
[356486193,1742520633903,-1000.0,0.000322,30]
[356486194,1742520633918,-533.56547346,0.00032217,2]
[356486195,1742520633928,-30630.85474066,0.00032227,2]
[356486196,1742520633938,-151.0,0.00032227,7]
[356486197,1742520633948,-151.0,0.00032227,7]
[356486198,1742520633959,-151.0,0.00032227,7]
[356486199,1742520633969,-151.0,0.00032227,7]
[356486200,1742520633980,-151.0,0.00032227,7]
[356486201,1742520633990,-151.0,0.00032227,7]
[356486202,1742520634000,-151.0,0.00032227,7]
[356486203,1742520634009,-151.0,0.00032227,7]
[356486204,1742520634018,-174.792197,0.00032227,7]
[356486205,1742520634028,-151.0,0.00032227,7]
[356486206,1742520634037,-174.792197,0.00032227,7]
[356486207,1742520634046,-151.0,0.00032227,7]
[356486208,1742520634055,-197.573972,0.00032227,7]
[356486209,1742520634065,-197.573972,0.00032227,7]
[356486210,1742520634075,-151.0,0.00032227,7]
[356486211,1742520634085,-151.0,0.00032227,7]
[356486212,1742520634094,-204.208344,0.00032227,7]
[356486213,1742520634103,-151.0,0.00032227,7]
[356486214,1742520634113,-166.348314,0.00032227,7]
[356486215,1742520634122,-854.963073,0.00032227,2]
[356486216,1742520634132,-854.963073,0.00032227,2]
[356486217,1742520634141,-151.0,0.00032227,7]
[356486218,1742520634151,-151.0,0.00032227,7]
[356486219,1742520634160,-151.0,0.00032227,7]
[356486220,1742520634170,-151.0,0.00032227,7]
[356486221,1742520634179,-151.0,0.00032227,7]
[356486222,1742520634189,-188.62057,0.00032227,7]
[356486223,1742520634198,-151.0,0.00032227,7]
[356486224,1742520634207,-150.0,0.00032265,2]
[356486225,1742520634217,-541.0,0.00032265,2]
[356486226,1742520634227,-1913.0,0.00032265,2]
[356486227,1742520634237,-2265.0,0.00032265,2]
[356486228,1742520634246,-399.0,0.00032265,2]
[356486229,1742520634256,-1650.52037322,0.00032279,6]
[356486230,1742520634265,-527.60208426,0.00032289,2]
[356486231,1742520634278,-5.9633892,0.00032289,2]
[356486232,1742520634287,-151.0,0.00032299,7]
[356486233,1742520634296,-151.0,0.00032299,7]
[356486234,1742520634306,-151.0,0.00032299,7]
[356486235,1742520634316,-151.0,0.00032299,7]
[356486236,1742520634325,-151.0,0.00032299,7]
[356486237,1742520634334,-151.0,0.00032299,7]
[356486238,1742520634344,-151.0,0.00032299,7]
[356486239,1742520634353,-174.792197,0.00032299,7]
[356486240,1742520634363,-174.792197,0.00032299,7]
[356486241,1742520634374,-174.792197,0.00032299,7]
[356486242,1742520634383,-174.792197,0.00032299,7]
[356486243,1742520634392,-56.27038709,0.00032299,7]
[356486250,1742520638233,-500.0,0.00030969,2]
[356486251,1742520638243,-500.0,0.00030969,2]
[356486252,1742520638252,-500.0,0.00030969,2]
[356486253,1742520638261,-163.72726593,0.00030969,2]
[356486254,1742520638270,-500.0,0.00030969,2]
[356486255,1742520638279,-500.0,0.00030969,2]
[356486256,1742520638291,-500.0,0.00030969,2]
[356486257,1742520638300,-500.0,0.00030969,2]
[356486258,1742520638310,-500.0,0.00030969,2]
[356486259,1742520638320,-500.0,0.00030969,2]
[356486260,1742520638330,-500.0,0.00030969,2]
[356486261,1742520638340,-500.0,0.00030969,2]
[356486262,1742520638349,-500.0,0.00030969,2]
[356486263,1742520638358,-500.0,0.00030969,2]
[356486264,1742520638368,-500.0,0.00030969,2]
[356486265,1742520638378,-500.0,0.00030969,2]
[356486266,1742520638386,-500.0,0.00030969,2]
[356486267,1742520638395,-500.0,0.00030969,2]
[356486268,1742520638405,-500.0,0.00030969,2]
[356486269,1742520638414,-500.0,0.00030969,2]
[356486270,1742520638423,-500.0,0.00030969,2]
[356486271,1742520638433,-500.0,0.00030969,2]
[356486272,1742520638443,-500.0,0.00030969,2]
[356486273,1742520638452,-500.0,0.00030969,2]
[356486274,1742520638461,-500.0,0.00030969,2]
[356486275,1742520638470,-500.0,0.00030969,2]
[356486276,1742520638479,-500.0,0.00030969,2]
[356486277,1742520638489,-500.0,0.00030969,2]
[356486278,1742520638498,-94.72961291,0.00032299,7]
[356486279,1742520638507,-197.573972,0.00032299,7]
[356486280,1742520638516,-197.573972,0.00032299,7]
[356486281,1742520638525,-197.573972,0.00032299,7]
[356486282,1742520638535,-197.573972,0.00032299,7]
[356486283,1742520638544,-151.0,0.00032299,7]
[356486284,1742520638553,-151.0,0.00032299,7]
[356486285,1742520638562,-151.0,0.00032299,7]
[356486286,1742520638571,-151.0,0.00032299,7]
[356486287,1742520638580,-151.0,0.00032299,7]
[356486288,1742520638590,-151.0,0.00032299,7]
[356486289,1742520638600,-854.963073,0.00032299,2]
[356486290,1742520638609,-854.963073,0.00032299,2]
[356486291,1742520638618,-854.963073,0.00032299,2]
[356486292,1742520638628,-854.963073,0.00032299,2]
[356486293,1742520638637,-151.0,0.00032299,7]
[356486294,1742520638646,-151.0,0.00032299,7]
[356486295,1742520638655,-151.0,0.00032299,7]
[356486296,1742520638667,-151.0,0.00032299,7]
[356486297,1742520638677,-151.0,0.00032299,7]
[356486298,1742520638687,-151.0,0.00032299,7]
[356486299,1742520638696,-151.0,0.00032299,7]
[356486300,1742520638706,-151.0,0.00032299,7]
[356486301,1742520638716,-151.0,0.00032299,7]
[356486302,1742520638725,-166.0,0.00032299,7]
[356486303,1742520638735,-200.0,0.00032299,7]
[356486304,1742520638745,-166.0,0.00032299,7]
[356486305,1742520638754,-201.18445547,0.00032299,7]
[356486306,1742520638764,-168.0,0.00032299,7]
[356486307,1742520638774,-166.0,0.00032299,7]
[356486308,1742520638783,-168.0,0.00032299,7]
[356486309,1742520638792,-166.0,0.00032299,7]
[356486310,1742520638801,-168.0,0.00032299,7]
[356486311,1742520638811,-300.35117003,0.00032299,7]
[356486312,1742520638820,-354.0,0.00032299,7]
[356486313,1742520638829,-354.0,0.00032299,7]
[356486314,1742520638838,-354.0,0.00032299,7]
[356486315,1742520638848,-354.0,0.00032299,7]
[356486316,1742520638857,-354.0,0.00032299,7]
[356486317,1742520638866,-354.0,0.00032299,7]
[356486318,1742520638875,-354.0,0.00032299,7]
[356486319,1742520638885,-317.0,0.00032299,7]
[356486320,1742520638894,-354.0,0.00032299,7]
[356486321,1742520638903,-317.0,0.00032299,7]
[356486322,1742520638915,-354.0,0.00032299,7]
[356486323,1742520638925,-317.0,0.00032299,7]
[356486324,1742520638934,-317.0,0.00032299,7]
[356486325,1742520638944,-354.0,0.00032299,7]
[356486326,1742520638955,-354.0,0.00032299,7]
[356486327,1742520638964,-317.0,0.00032299,7]
[356486328,1742520638974,-354.0,0.00032299,7]
[356486329,1742520638984,-317.0,0.00032299,7]
[356486330,1742520638994,-354.0,0.00032299,7]
[356486331,1742520639003,-317.0,0.00032299,7]
[356486332,1742520639013,-354.0,0.00032299,7]
[356486333,1742520639022,-317.0,0.00032299,7]
[356486334,1742520639031,-354.0,0.00032299,7]
[356486335,1742520639041,-317.0,0.00032299,7]
[356486336,1742520639050,-354.0,0.00032299,7]
[356486337,1742520639059,-317.0,0.00032299,7]
[356486338,1742520639069,-317.0,0.00032299,7]
[356486339,1742520639078,-354.0,0.00032299,7]
[356486340,1742520639088,-354.0,0.00032299,7]
[356486341,1742520639097,-354.0,0.00032299,7]
[356486342,1742520639107,-317.0,0.00032299,7]
[356486343,1742520639116,-354.0,0.00032299,7]
[356486344,1742520639127,-317.0,0.00032299,7]
[356486345,1742520639136,-317.0,0.00032299,7]
[356486346,1742520639146,-317.0,0.00032299,7]
[356486347,1742520639156,-354.0,0.00032299,7]
[356486348,1742520639165,-317.0,0.00032299,7]
[356486349,1742520639175,-354.0,0.00032299,7]
[356486350,1742520639184,-317.0,0.00032299,7]
[356486351,1742520639194,-317.0,0.00032299,7]
[356486352,1742520639203,-354.0,0.00032299,7]
[356486353,1742520639213,-317.0,0.00032299,7]
[356486354,1742520639223,-354.0,0.00032299,7]
[356486355,1742520639232,-317.0,0.00032299,7]
[356486356,1742520639242,-354.0,0.00032299,7]
[356486357,1742520639252,-317.0,0.00032299,7]
[356486358,1742520639262,-354.0,0.00032299,7]
[356486359,1742520639272,-317.0,0.00032299,7]
[356486360,1742520639283,-354.0,0.00032299,7]
[356486361,1742520639293,-317.0,0.00032299,7]
[356486362,1742520639302,-317.0,0.00032299,7]
[356486363,1742520639312,-354.0,0.00032299,7]
[356486364,1742520639322,-317.0,0.00032299,7]
[356486365,1742520639331,-317.0,0.00032299,7]
[356486366,1742520639341,-354.0,0.00032299,7]
[356486367,1742520639351,-413.44718099,0.00032299,7]
[356486368,1742520639360,-354.0,0.00032299,7]
[356486369,1742520639370,-354.0,0.00032299,7]
[356486370,1742520639383,-354.0,0.00032299,7]
[356486371,1742520639392,-354.0,0.00032299,7]
[356486372,1742520639402,-354.0,0.00032299,7]
[356486373,1742520639412,-354.0,0.00032299,7]
[356486374,1742520639422,-354.0,0.00032299,7]
[356486375,1742520639431,-354.0,0.00032299,7]
[356486376,1742520639441,-354.0,0.00032299,7]
[356486377,1742520639450,-354.0,0.00032299,7]
[356486378,1742520639460,-354.0,0.00032299,7]
[356486379,1742520639469,-354.0,0.00032299,7]
[356486380,1742520639479,-205.23751858,0.00032299,7]
[356486381,1742520639489,-420.0,0.00032301,2]
[356486382,1742520639498,-1000.0,0.00032329,6]
[356486383,1742520639507,-11622.81430963,0.00032329,5]
[356486384,1742520639517,-151.0,0.00032329,7]
[356486385,1742520639526,-151.0,0.00032329,7]
[356486386,1742520639536,-151.0,0.00032329,7]
[356486387,1742520639545,-151.0,0.00032329,7]
[356486388,1742520639555,-151.0,0.00032329,7]
[356486389,1742520639565,-151.0,0.00032329,7]
[356486390,1742520639576,-174.792197,0.00032329,7]
[356486391,1742520639585,-174.792197,0.00032329,7]
[356486392,1742520639594,-151.0,0.00032329,7]
[356486393,1742520639604,-197.573972,0.00032329,7]
[356486394,1742520639613,-197.573972,0.00032329,7]
[356486395,1742520639624,-151.0,0.00032329,7]
[356486396,1742520639639,-151.0,0.00032329,7]
[356486397,1742520639653,-854.963073,0.00032329,2]
[356486398,1742520639663,-854.963073,0.00032329,2]
[356486399,1742520639673,-151.0,0.00032329,7]
[356486400,1742520639682,-151.0,0.00032329,7]
[356486401,1742520639692,-151.0,0.00032329,7]
[356486402,1742520639701,-151.0,0.00032329,7]
[356486403,1742520639710,-153.352,0.0003245,2]
[356486404,1742520639720,-249.539,0.0003245,2]
[356486405,1742520639729,-228.998,0.0003245,2]
[356486406,1742520639738,-1650.52037322,0.00032452,6]
[356486407,1742520639747,-1000.0,0.00032466,6]
[356486408,1742520639757,-3039.26512313,0.000325,7]
[356486409,1742520639766,-1067.13094692,0.00032537,2]
[356486410,1742520639775,-151.0,0.00032547,7]
[356486411,1742520639785,-151.0,0.00032547,7]
[356486412,1742520639794,-151.0,0.00032547,7]
[356486413,1742520639803,-151.0,0.00032547,7]
[356486414,1742520639812,-151.0,0.00032547,7]
[356486415,1742520639822,-228.457446,0.00032547,7]
[356486416,1742520639831,-97471.67001257,0.00032547,2]
[356486417,1742520639840,-151.0,0.00032547,7]
[356486418,1742520639850,-151.0,0.00032547,7]
[356486419,1742520639859,-151.0,0.00032547,7]
[356486420,1742520639869,-151.0,0.00032547,7]
[356486421,1742520639881,-151.0,0.00032547,7]
[356486422,1742520639890,-151.0,0.00032547,7]
[356486423,1742520639900,-151.0,0.00032547,7]
[356486424,1742520639911,-271.309252,0.00032547,7]
[356486425,1742520639922,-174.792197,0.00032547,7]
[356486426,1742520639931,-174.792197,0.00032547,7]
[356486427,1742520639941,-151.0,0.00032547,7]
[356486428,1742520639951,-257.656689,0.00032547,7]
[356486429,1742520639961,-197.573972,0.00032547,7]
[356486430,1742520639970,-197.573972,0.00032547,7]
[356486431,1742520639980,-151.0,0.00032547,7]
[356486433,1742520639990,-151.0,0.00032547,7]
[356486435,1742520640000,-854.963073,0.00032547,2]
[356486437,1742520640009,-854.963073,0.00032547,2]
[356486438,1742520640019,-151.0,0.00032547,7]
[356486439,1742520640029,-151.0,0.00032547,7]
[356486440,1742520640038,-227.521862,0.00032547,7]
[356486441,1742520640048,-151.0,0.00032547,7]
[356486443,1742520640058,-151.0,0.000326,12]
[356486445,1742520640067,-1000.0,0.00032603,6]
[356486446,1742520640076,-1650.52037322,0.00032624,6]
[356486447,1742520640085,-1485.46787858,0.00032629,2]
[356486448,1742520640094,-210.313,0.00032682,33]
[356486449,1742520640104,-151.0,0.000327,15]
[356486450,1742520640113,-1000.0,0.0003274,6]
[356486451,1742520640123,-1650.52037322,0.00032797,6]
[356486452,1742520640133,-300.0,0.000328,16]
[356486453,1742520640142,-151.0,0.000328,15]
[356486454,1742520640151,-1000.0,0.000328,40]
[356486455,1742520640161,-1025.84,0.000328,50]
[356486456,1742520640171,-533.56547346,0.00032863,2]
[356486457,1742520640181,-151.0,0.00032865,7]
[356486458,1742520640191,-1600.69642038,0.00032865,2]
[356486459,1742520640200,-3734.95831422,0.00032866,2]
[356486461,1742520640210,-174.792197,0.00032866,7]
[356486462,1742520640219,-174.792197,0.00032866,7]
[356486463,1742520640228,-197.573972,0.00032866,7]
[356486464,1742520640238,-197.573972,0.00032866,7]
[356486465,1742520640247,-151.0,0.00032866,7]
[356486466,1742520640255,-854.963073,0.00032866,2]
[356486467,1742520640265,-854.963073,0.00032866,2]
[356486468,1742520640274,-151.0,0.00032866,7]
[356486469,1742520640284,-281.915088,0.00032866,7]
[356486470,1742520640557,-151.0,0.00032866,7]
[356486471,1742520640567,-264.65067899,0.00032873,5]
[356486472,1742520640577,-500.0,0.00032873,5]
[356486473,1742520640586,-500.0,0.00032873,5]
[356486474,1742520640596,-500.0,0.00032873,5]
[356486475,1742520640605,-500.0,0.00032873,5]
[356486476,1742520640614,-500.0,0.00032873,5]
[356486477,1742520640624,-508.37085595,0.00032873,5]
[356486478,1742520640634,-500.0,0.00032873,5]
[356486479,1742520640644,-500.0,0.00032873,5]
[356486481,1742520640653,-500.0,0.00032873,5]
[356486483,1742520640663,-500.0,0.00032873,5]
[356486485,1742520640673,-500.0,0.00032873,5]
[356486486,1742520640683,-500.0,0.00032873,5]
[356486487,1742520640692,-500.0,0.00032873,5]
[356486488,1742520640702,-269.59280595,0.00032873,5]
[356486489,1742520640711,-267.59107631,0.00032873,5]
[356486490,1742520640723,-201.86255533,0.00032873,5]
[356486491,1742520640734,-155.32638899,0.00032873,5]
[356486492,1742520640744,-500.0,0.00032873,5]
[356486493,1742520640754,-500.0,0.00032873,5]
[356486494,1742520640764,-500.0,0.00032873,5]
[356486495,1742520640773,-500.0,0.00032873,5]
[356486496,1742520640783,-260.08948276,0.00032873,5]
[356486497,1742520640792,-500.0,0.00032873,5]
[356486498,1742520640801,-500.0,0.00032873,5]
[356486499,1742520640810,-454.33114703,0.00032873,2]
[356486500,1742520640819,-500.0,0.00032873,5]
[356486501,1742520640829,-500.0,0.00032873,5]
[356486502,1742520640838,-500.0,0.00032873,5]
[356486503,1742520640847,-500.0,0.00032873,5]
[356486504,1742520640857,-500.74672606,0.00032873,5]
[356486505,1742520640866,-500.0,0.00032873,5]
[356486506,1742520640877,-500.0,0.00032873,5]
[356486507,1742520640887,-500.0,0.00032873,5]
[356486508,1742520640896,-500.0,0.00032873,2]
[356486509,1742520640906,-151.0,0.00032873,7]
[356486510,1742520640920,-151.0,0.00032873,7]
[356486511,1742520640930,-151.0,0.00032873,7]
[356486512,1742520640940,-151.0,0.00032873,7]
[356486513,1742520640949,-151.0,0.00032873,7]
[356486514,1742520640960,-854.963073,0.00032873,2]
[356486515,1742520640969,-854.963073,0.00032873,2]
[356486516,1742520640979,-210.716135,0.00032873,7]
[356486517,1742520640990,-151.0,0.00032873,7]
[356486518,1742520640999,-23476.50809813,0.00032875,2]
[356486519,1742520641013,-117454.5062325,0.00032875,2]
[356486520,1742520641025,-1128.09001681,0.00032875,2]
[356486521,1742520641034,-151.0,0.00032875,7]
[356486522,1742520641043,-151.0,0.00032875,7]
[356486523,1742520641052,-151.0,0.00032875,7]
[356486524,1742520641062,-151.0,0.00032875,7]
[356486525,1742520641071,-174.792197,0.00032875,7]
[356486526,1742520641081,-174.792197,0.00032875,7]
[356486527,1742520641090,-197.573972,0.00032875,7]
[356486528,1742520641099,-197.573972,0.00032875,7]
[356486529,1742520641109,-151.0,0.00032875,7]
[356486530,1742520641118,-151.0,0.00032875,7]
[356486531,1742520641128,-854.963073,0.00032875,2]
[356486532,1742520641138,-854.963073,0.00032875,2]
[356486533,1742520641147,-151.0,0.00032875,7]